[Event "Titled Tuesday Blitz April 25 Early 2023"]
[White "Silva, Pedro Gil Ferreira Da"]
[Black "tufferguy"]
[WhiteFideId "1946102"]
[WhiteElo "2255"]
[BlackElo "2611"]
[Result "1-0"]
[Round "03"]
[TimeControl "180+2"]
[Date "2023.04.25"]
[WhiteClock "0:02:03"]
[BlackClock "0:00:14"]

1. c4 {[%clk 0:03:00]}  e5 {[%clk 0:02:57]} 2. Nf3 {[%clk 0:03:00]}  d6 {[%clk 0:02:57]} 3. g3 {[%clk 0:02:59]}  f5 {[%clk 0:02:57]} 4. Bg2 {[%clk 0:02:59]}  Nf6 {[%clk 0:02:58]} 5. O-O {[%clk 0:03:00]}  Be7 {[%clk 0:02:59]} 6. Nc3 {[%clk 0:03:00]}  O-O {[%clk 0:02:59]} 7. d4 {[%clk 0:03:00]}  e4 {[%clk 0:02:58]} 8. Ng5 {[%clk 0:03:00]}  h6 {[%clk 0:02:48]} 9. Nh3 {[%clk 0:02:59]}  g5 {[%clk 0:02:49]} 10. f4 {[%clk 0:02:58]}  g4 {[%clk 0:02:48]} 11. Nf2 {[%clk 0:02:59]}  h5 {[%clk 0:02:48]} 12. e3 {[%clk 0:02:59]}  Kg7 {[%clk 0:02:47]} 13. b3 {[%clk 0:02:58]}  h4 {[%clk 0:02:48]} 14. Bb2 {[%clk 0:02:57]}  hxg3 {[%clk 0:02:48]} 15. hxg3 {[%clk 0:02:58]}  Rh8 {[%clk 0:02:48]} 16. d5 {[%clk 0:02:58]}  Qe8 {[%clk 0:02:45]} 17. Ncxe4 {[%clk 0:02:53]}  fxe4 {[%clk 0:02:38]} 18. Nxe4 {[%clk 0:02:54]}  Nd7 {[%clk 0:02:22]} 19. Qd4 {[%clk 0:02:49]}  Qh5 {[%clk 0:01:55]} 20. Ng5 {[%clk 0:02:47]}  Nf8 {[%clk 0:01:26]} 21. e4 {[%clk 0:02:39]}  Nh7 {[%clk 0:00:31]} 22. Nxh7 {[%clk 0:02:28]}  Kxh7 {[%clk 0:00:20]} 23. e5 {[%clk 0:02:28]}  Nd7 {[%clk 0:00:17]} 24. Be4+ {[%clk 0:02:26]}  Kg8 {[%clk 0:00:17]} 25. Kf2 {[%clk 0:02:24]}  dxe5 {[%clk 0:00:17]} 26. fxe5 {[%clk 0:02:22]}  Bc5 {[%clk 0:00:18]} 27. Rh1 {[%clk 0:02:22]}  Bxd4+ {[%clk 0:00:18]} 28. Bxd4 {[%clk 0:02:23]}  Qf7+ {[%clk 0:00:17]} 29. Ke3 {[%clk 0:02:23]}  Nf8 {[%clk 0:00:17]} 30. Rxh8+ {[%clk 0:02:21]}  Kxh8 {[%clk 0:00:17]} 31. e6+ {[%clk 0:02:22]}  Qg7 {[%clk 0:00:17]} 32. Rh1+ {[%clk 0:02:20]}  Kg8 {[%clk 0:00:17]} 33. Bxg7 {[%clk 0:02:20]}  Kxg7 {[%clk 0:00:18]} 34. Rh4 {[%clk 0:02:21]}  Nxe6 {[%clk 0:00:15]} 35. Rxg4+ {[%clk 0:02:20]}  Kf6 {[%clk 0:00:15]} 36. dxe6 {[%clk 0:02:20]}  Bxe6 {[%clk 0:00:15]} 37. Rh4 {[%clk 0:02:19]}  Rg8 {[%clk 0:00:15]} 38. Rh6+ {[%clk 0:02:19]}  Ke5 {[%clk 0:00:15]} 39. Rh5+ {[%clk 0:02:18]}  Kf6 {[%clk 0:00:15]} 40. Kf4 {[%clk 0:02:06]}  c6 {[%clk 0:00:15]} 41. Rh6+ {[%clk 0:02:05]}  Ke7 {[%clk 0:00:15]} 42. Rh7+ {[%clk 0:02:02]}  Bf7 {[%clk 0:00:16]} 43. g4 {[%clk 0:02:01]}  Kf6 {[%clk 0:00:16]} 44. g5+ {[%clk 0:02:01]}  Ke6 {[%clk 0:00:16]} 45. Rh6+ {[%clk 0:02:00]}  Ke7 {[%clk 0:00:16]} 46. g6 {[%clk 0:02:01]}  Be6 {[%clk 0:00:13]} 47. Ke5 {[%clk 0:02:01]}  Rg7 {[%clk 0:00:13]} 48. Rh7 {[%clk 0:02:01]}  Rxh7 {[%clk 0:00:12]} 49. gxh7 {[%clk 0:02:02]}  Bf7 {[%clk 0:00:12]} 50. h8=Q {[%clk 0:02:02]}  b5 {[%clk 0:00:13]} 51. Qf6+ {[%clk 0:02:03]}  Ke8 {[%clk 0:00:13]} 52. Bg6 {[%clk 0:02:03]}  Kf8 {[%clk 0:00:14]} 53. Qxf7# {[%clk 0:02:03]} 1-0


[Site "https://www.chess.com"]

[Event "Titled Tuesday Blitz April 25 Early 2023"]
[White "Gil Alba, Hector Luis"]
[Black "Brunner, Nicolas"]
[WhiteFideId "3504670"]
[BlackFideId "620246"]
[WhiteElo "2331"]
[BlackElo "2327"]
[Result "1/2-1/2"]
[Round "03"]
[TimeControl "180+2"]
[Date "2023.04.25"]
[WhiteClock "0:00:01"]
[BlackClock "0:00:05"]

1. e4 {[%clk 0:03:00]}  e5 {[%clk 0:03:00]} 2. Nf3 {[%clk 0:03:00]}  Nf6 {[%clk 0:03:00]} 3. d4 {[%clk 0:02:57]}  Nxe4 {[%clk 0:02:59]} 4. Bd3 {[%clk 0:02:22]}  d5 {[%clk 0:02:59]} 5. Nxe5 {[%clk 0:02:20]}  Nd7 {[%clk 0:02:59]} 6. Nc3 {[%clk 0:02:18]}  Nxc3 {[%clk 0:02:57]} 7. bxc3 {[%clk 0:02:17]}  Bd6 {[%clk 0:02:56]} 8. O-O {[%clk 0:02:12]}  O-O {[%clk 0:02:49]} 9. f4 {[%clk 0:02:09]}  c5 {[%clk 0:02:28]} 10. Kh1 {[%clk 0:01:37]}  c4 {[%clk 0:02:22]} 11. Be2 {[%clk 0:01:36]}  Nf6 {[%clk 0:02:22]} 12. Bf3 {[%clk 0:01:35]}  Bf5 {[%clk 0:02:21]} 13. g4 {[%clk 0:01:30]}  Be4 {[%clk 0:02:20]} 14. g5 {[%clk 0:01:28]}  Bxf3+ {[%clk 0:02:20]} 15. Qxf3 {[%clk 0:01:25]}  Ne4 {[%clk 0:02:21]} 16. Nxc4 {[%clk 0:01:21]}  Rc8 {[%clk 0:01:56]} 17. Ne3 {[%clk 0:01:18]}  Nxc3 {[%clk 0:01:28]} 18. Bb2 {[%clk 0:01:06]}  Bb8 {[%clk 0:01:09]} 19. Rae1 {[%clk 0:00:56]}  Ne4 {[%clk 0:01:01]} 20. Qg2 {[%clk 0:00:52]}  Re8 {[%clk 0:00:58]} 21. c4 {[%clk 0:00:43]}  dxc4 {[%clk 0:00:54]} 22. Nxc4 {[%clk 0:00:42]}  Rxc4 {[%clk 0:00:42]} 23. Rxe4 {[%clk 0:00:40]}  b5 {[%clk 0:00:22]} 24. Rfe1 {[%clk 0:00:38]}  Rxe4 {[%clk 0:00:21]} 25. Qxe4 {[%clk 0:00:37]}  Rc8 {[%clk 0:00:21]} 26. d5 {[%clk 0:00:35]}  Bd6 {[%clk 0:00:20]} 27. Qd4 {[%clk 0:00:34]}  Bf8 {[%clk 0:00:20]} 28. Rd1 {[%clk 0:00:30]}  Rc4 {[%clk 0:00:19]} 29. Qd2 {[%clk 0:00:28]}  Qd6 {[%clk 0:00:17]} 30. Qe3 {[%clk 0:00:26]}  Qxf4 {[%clk 0:00:14]} 31. Qxf4 {[%clk 0:00:24]}  Rxf4 {[%clk 0:00:14]} 32. d6 {[%clk 0:00:24]}  f6 {[%clk 0:00:05]} 33. d7 {[%clk 0:00:22]}  Be7 {[%clk 0:00:06]} 34. d8=Q+ {[%clk 0:00:19]}  Bxd8 {[%clk 0:00:06]} 35. Rxd8+ {[%clk 0:00:18]}  Kf7 {[%clk 0:00:06]} 36. gxf6 {[%clk 0:00:18]}  gxf6 {[%clk 0:00:06]} 37. Rd7+ {[%clk 0:00:18]}  Kg6 {[%clk 0:00:07]} 38. Rxa7 {[%clk 0:00:17]}  Rf2 {[%clk 0:00:06]} 39. Bd4 {[%clk 0:00:16]}  Rd2 {[%clk 0:00:06]} 40. Bc3 {[%clk 0:00:16]}  Rc2 {[%clk 0:00:06]} 41. Bd4 {[%clk 0:00:14]}  Rd2 {[%clk 0:00:06]} 42. Rd7 {[%clk 0:00:13]}  Rxa2 {[%clk 0:00:05]} 43. Rd6 {[%clk 0:00:11]}  Rd2 {[%clk 0:00:03]} 44. Rxf6+ {[%clk 0:00:09]}  Kg5 {[%clk 0:00:03]} 45. Be3+ {[%clk 0:00:09]}  Kxf6 {[%clk 0:00:03]} 46. Bxd2 {[%clk 0:00:08]}  Ke5 {[%clk 0:00:03]} 47. Kg2 {[%clk 0:00:08]}  Ke4 {[%clk 0:00:04]} 48. Kg3 {[%clk 0:00:07]}  Kd3 {[%clk 0:00:04]} 49. Ba5 {[%clk 0:00:06]}  Kc4 {[%clk 0:00:04]} 50. Kg4 {[%clk 0:00:05]}  b4 {[%clk 0:00:04]} 51. Bd8 {[%clk 0:00:03]}  b3 {[%clk 0:00:02]} 52. Bf6 {[%clk 0:00:04]}  Kd3 {[%clk 0:00:03]} 53. Kg5 {[%clk 0:00:03]}  Kc2 {[%clk 0:00:03]} 54. h4 {[%clk 0:00:03]}  b2 {[%clk 0:00:04]} 55. Bxb2 {[%clk 0:00:02]}  Kxb2 {[%clk 0:00:04]} 56. Kh6 {[%clk 0:00:01]}  Kc3 {[%clk 0:00:05]} 57. Kxh7 {[%clk 0:00:01]}  Kd4 {[%clk 0:00:05]} 1/2-1/2


[Site "https://www.chess.com"]

[Event "Titled Tuesday Blitz April 25 Early 2023"]
[White "Avazkhonov, Alikhon"]
[Black "Kokoszczynski, Jan"]
[WhiteFideId "14208504"]
[BlackFideId "1174460"]
[WhiteElo "1739"]
[BlackElo "2139"]
[Result "1-0"]
[Round "03"]
[TimeControl "180+2"]
[Date "2023.04.25"]
[WhiteClock "0:00:05"]
[BlackClock "0:00:08"]

1. d4 {[%clk 0:03:00]}  Nf6 {[%clk 0:02:59]} 2. c4 {[%clk 0:03:01]}  e6 {[%clk 0:03:00]} 3. Nc3 {[%clk 0:03:02]}  d5 {[%clk 0:03:00]} 4. cxd5 {[%clk 0:03:03]}  exd5 {[%clk 0:03:00]} 5. Bg5 {[%clk 0:03:03]}  c6 {[%clk 0:02:59]} 6. e3 {[%clk 0:03:04]}  Bd6 {[%clk 0:02:57]} 7. Bd3 {[%clk 0:03:04]}  h6 {[%clk 0:02:58]} 8. Bh4 {[%clk 0:03:04]}  O-O {[%clk 0:02:58]} 9. Nf3 {[%clk 0:03:04]}  a5 {[%clk 0:02:58]} 10. Qc2 {[%clk 0:03:05]}  Na6 {[%clk 0:02:57]} 11. a3 {[%clk 0:03:02]}  Nc7 {[%clk 0:02:57]} 12. h3 {[%clk 0:02:45]}  Re8 {[%clk 0:02:37]} 13. O-O-O {[%clk 0:02:06]}  b5 {[%clk 0:02:36]} 14. g4 {[%clk 0:02:05]}  b4 {[%clk 0:02:33]} 15. axb4 {[%clk 0:01:48]}  axb4 {[%clk 0:02:34]} 16. Na4 {[%clk 0:01:47]}  Ne6 {[%clk 0:00:55]} 17. b3 {[%clk 0:01:28]}  Be7 {[%clk 0:00:46]} 18. Rhg1 {[%clk 0:01:24]}  Bd7 {[%clk 0:00:41]} 19. g5 {[%clk 0:01:05]}  hxg5 {[%clk 0:00:41]} 20. Nxg5 {[%clk 0:01:06]}  c5 {[%clk 0:00:30]} 21. Nxe6 {[%clk 0:00:44]}  Bxe6 {[%clk 0:00:29]} 22. Nxc5 {[%clk 0:00:45]}  Qb6 {[%clk 0:00:13]} 23. Kb2 {[%clk 0:00:42]}  Ra7 {[%clk 0:00:08]} 24. Ra1 {[%clk 0:00:41]}  Rc7 {[%clk 0:00:08]} 25. Ra6 {[%clk 0:00:40]}  Qb8 {[%clk 0:00:05]} 26. Qe2 {[%clk 0:00:30]}  Rec8 {[%clk 0:00:05]} 27. Nxe6 {[%clk 0:00:14]}  fxe6 {[%clk 0:00:05]} 28. Bxf6 {[%clk 0:00:15]}  Bxf6 {[%clk 0:00:05]} 29. Qg4 {[%clk 0:00:15]}  Kf8 {[%clk 0:00:05]} 30. Rxe6 {[%clk 0:00:09]}  Qb7 {[%clk 0:00:04]} 31. Rxf6+ {[%clk 0:00:09]}  gxf6 {[%clk 0:00:04]} 32. Qg8+ {[%clk 0:00:09]}  Ke7 {[%clk 0:00:04]} 33. Qg7+ {[%clk 0:00:02]}  Ke6 {[%clk 0:00:05]} 34. Qg4+ {[%clk 0:00:02]}  Kd6 {[%clk 0:00:05]} 35. e4 {[%clk 0:00:01]}  dxe4 {[%clk 0:00:04]} 36. Bxe4 {[%clk 0:00:02]}  Rc2+ {[%clk 0:00:03]} 37. Bxc2 {[%clk 0:00:02]}  Qc7 {[%clk 0:00:04]} 38. Qg3+ {[%clk 0:00:02]}  Ke7 {[%clk 0:00:05]} 39. Qxc7+ {[%clk 0:00:03]}  Rxc7 {[%clk 0:00:06]} 40. Rg4 {[%clk 0:00:04]}  Kd6 {[%clk 0:00:07]} 41. Re4 {[%clk 0:00:04]}  Rc3 {[%clk 0:00:07]} 42. Re3 {[%clk 0:00:05]}  Rc7 {[%clk 0:00:07]} 43. Rd3 {[%clk 0:00:05]}  Rg7 {[%clk 0:00:07]} 44. Rg3 {[%clk 0:00:05]}  Re7 {[%clk 0:00:07]} 45. Kc1 {[%clk 0:00:05]}  Re2 {[%clk 0:00:08]} 46. Rf3 {[%clk 0:00:05]}  Ke6 {[%clk 0:00:08]} 47. Kd1 {[%clk 0:00:05]} 1-0


[Site "https://www.chess.com"]

[Event "Titled Tuesday Blitz April 25 Early 2023"]
[White "Ezat, Mohamed"]
[Black "Dwilewicz, Katarzyna"]
[WhiteFideId "10600906"]
[BlackFideId "1148486"]
[WhiteElo "2386"]
[BlackElo "2065"]
[Result "1-0"]
[Round "03"]
[TimeControl "180+2"]
[Date "2023.04.25"]
[WhiteClock "0:00:14"]
[BlackClock "0:00:04"]

1. d4 {[%clk 0:02:59]}  d5 {[%clk 0:02:58]} 2. c4 {[%clk 0:02:59]}  dxc4 {[%clk 0:02:56]} 3. e3 {[%clk 0:02:56]}  Nf6 {[%clk 0:02:55]} 4. Bxc4 {[%clk 0:02:56]}  e6 {[%clk 0:02:54]} 5. Nc3 {[%clk 0:02:56]}  c5 {[%clk 0:02:53]} 6. Nf3 {[%clk 0:02:52]}  a6 {[%clk 0:02:53]} 7. O-O {[%clk 0:02:50]}  b5 {[%clk 0:02:52]} 8. Bd3 {[%clk 0:02:50]}  Bb7 {[%clk 0:02:52]} 9. Qe2 {[%clk 0:02:49]}  Nbd7 {[%clk 0:02:52]} 10. Rd1 {[%clk 0:02:48]}  cxd4 {[%clk 0:02:47]} 11. exd4 {[%clk 0:02:48]}  Be7 {[%clk 0:02:45]} 12. Bg5 {[%clk 0:02:45]}  O-O {[%clk 0:02:43]} 13. Rac1 {[%clk 0:02:37]}  Rc8 {[%clk 0:02:42]} 14. Bb1 {[%clk 0:02:37]}  Nd5 {[%clk 0:02:31]} 15. Qe4 {[%clk 0:02:22]}  g6 {[%clk 0:02:27]} 16. Qh4 {[%clk 0:02:21]}  Re8 {[%clk 0:02:09]} 17. Nxd5 {[%clk 0:01:48]}  exd5 {[%clk 0:01:52]} 18. Rxc8 {[%clk 0:01:38]}  Bxc8 {[%clk 0:01:50]} 19. Bxe7 {[%clk 0:01:29]}  Qxe7 {[%clk 0:01:50]} 20. Qxe7 {[%clk 0:01:29]}  Rxe7 {[%clk 0:01:50]} 21. Rc1 {[%clk 0:01:29]}  Nb6 {[%clk 0:01:44]} 22. Rc6 {[%clk 0:01:16]}  Re6 {[%clk 0:01:38]} 23. Rc7 {[%clk 0:01:12]}  f6 {[%clk 0:01:23]} 24. Bd3 {[%clk 0:01:06]}  Bd7 {[%clk 0:01:19]} 25. b3 {[%clk 0:01:03]}  Rc6 {[%clk 0:01:15]} 26. Rxc6 {[%clk 0:01:02]}  Bxc6 {[%clk 0:01:15]} 27. Ne1 {[%clk 0:01:02]}  Kf7 {[%clk 0:01:07]} 28. Be2 {[%clk 0:00:56]}  Ke6 {[%clk 0:01:06]} 29. Nd3 {[%clk 0:00:56]}  Kd6 {[%clk 0:01:03]} 30. f4 {[%clk 0:00:54]}  Bd7 {[%clk 0:00:50]} 31. Kf2 {[%clk 0:00:52]}  a5 {[%clk 0:00:46]} 32. Nc5 {[%clk 0:00:49]}  Bc6 {[%clk 0:00:39]} 33. g4 {[%clk 0:00:43]}  a4 {[%clk 0:00:38]} 34. g5 {[%clk 0:00:39]}  fxg5 {[%clk 0:00:34]} 35. fxg5 {[%clk 0:00:39]}  axb3 {[%clk 0:00:23]} 36. axb3 {[%clk 0:00:38]}  Nc8 {[%clk 0:00:23]} 37. Bg4 {[%clk 0:00:34]}  Ne7 {[%clk 0:00:22]} 38. Be6 {[%clk 0:00:33]}  Nf5 {[%clk 0:00:15]} 39. Bxf5 {[%clk 0:00:32]}  gxf5 {[%clk 0:00:15]} 40. Ke3 {[%clk 0:00:32]}  Be8 {[%clk 0:00:13]} 41. Kf4 {[%clk 0:00:31]}  Bg6 {[%clk 0:00:13]} 42. Nd3 {[%clk 0:00:29]}  Ke6 {[%clk 0:00:10]} 43. b4 {[%clk 0:00:27]}  Kd6 {[%clk 0:00:04]} 44. h4 {[%clk 0:00:26]}  Ke6 {[%clk 0:00:04]} 45. Kg3 {[%clk 0:00:23]}  Be8 {[%clk 0:00:04]} 46. Nf4+ {[%clk 0:00:21]}  Kd6 {[%clk 0:00:03]} 47. h5 {[%clk 0:00:21]}  Bf7 {[%clk 0:00:02]} 48. Kh4 {[%clk 0:00:19]}  Ke7 {[%clk 0:00:02]} 49. g6 {[%clk 0:00:16]}  hxg6 {[%clk 0:00:03]} 50. hxg6 {[%clk 0:00:16]}  Bg8 {[%clk 0:00:03]} 51. Kg5 {[%clk 0:00:17]}  Kd6 {[%clk 0:00:03]} 52. Kxf5 {[%clk 0:00:16]}  Ke7 {[%clk 0:00:03]} 53. Ke5 {[%clk 0:00:15]}  Kd7 {[%clk 0:00:04]} 54. Nxd5 {[%clk 0:00:14]} 1-0


[Site "https://www.chess.com"]

[Event "Titled Tuesday Blitz April 25 Early 2023"]
[White "Lima, Kleyton Alcantara"]
[Black "Hamitevici, Vladimir"]
[WhiteFideId "22718397"]
[BlackFideId "13902393"]
[WhiteElo "2009"]
[BlackElo "2401"]
[Result "0-1"]
[Round "03"]
[TimeControl "180+2"]
[Date "2023.04.25"]
[WhiteClock "0:00:51"]
[BlackClock "0:00:34"]

1. d4 {[%clk 0:03:00]}  Nf6 {[%clk 0:02:59]} 2. c4 {[%clk 0:03:00]}  c5 {[%clk 0:02:57]} 3. d5 {[%clk 0:03:00]}  b5 {[%clk 0:02:56]} 4. cxb5 {[%clk 0:02:55]}  a6 {[%clk 0:02:55]} 5. bxa6 {[%clk 0:02:53]}  g6 {[%clk 0:02:55]} 6. Nc3 {[%clk 0:02:53]}  Bg7 {[%clk 0:02:54]} 7. e4 {[%clk 0:02:46]}  O-O {[%clk 0:02:54]} 8. Nf3 {[%clk 0:02:44]}  Qa5 {[%clk 0:02:53]} 9. Bd3 {[%clk 0:02:43]}  Nxd5 {[%clk 0:02:43]} 10. exd5 {[%clk 0:01:57]}  Bxc3+ {[%clk 0:02:42]} 11. Bd2 {[%clk 0:01:57]}  Bxd2+ {[%clk 0:02:35]} 12. Nxd2 {[%clk 0:01:58]}  Bxa6 {[%clk 0:02:30]} 13. Bxa6 {[%clk 0:01:56]}  Qxa6 {[%clk 0:02:23]} 14. Qe2 {[%clk 0:01:55]}  Qxe2+ {[%clk 0:02:20]} 15. Kxe2 {[%clk 0:01:55]}  Na6 {[%clk 0:02:20]} 16. a3 {[%clk 0:01:51]}  Rfb8 {[%clk 0:02:15]} 17. Nc4 {[%clk 0:01:49]}  Nc7 {[%clk 0:02:10]} 18. Rhd1 {[%clk 0:01:46]}  Nb5 {[%clk 0:02:09]} 19. Rab1 {[%clk 0:01:43]}  Nd4+ {[%clk 0:02:07]} 20. Kd3 {[%clk 0:01:34]}  Rb3+ {[%clk 0:02:05]} 21. Ke4 {[%clk 0:01:34]}  f5+ {[%clk 0:01:54]} 22. Kf4 {[%clk 0:01:28]}  Ra4 {[%clk 0:01:28]} 23. Rxd4 {[%clk 0:01:07]}  cxd4 {[%clk 0:01:25]} 24. Nd2 {[%clk 0:01:08]}  Rd3 {[%clk 0:01:14]} 25. Nf3 {[%clk 0:01:06]}  Kg7 {[%clk 0:01:03]} 26. Rc1 {[%clk 0:00:59]}  Kf6 {[%clk 0:00:45]} 27. Rc7 {[%clk 0:00:52]}  e5+ {[%clk 0:00:40]} 28. Nxe5 {[%clk 0:00:51]}  g5# {[%clk 0:00:34]} 0-1


[Site "https://www.chess.com"]

[Event "Titled Tuesday Blitz April 25 Early 2023"]
[White "Taboas Rodriguez, Daniel"]
[Black "Mazurkiewicz, Michal"]
[WhiteFideId "2208466"]
[BlackFideId "1124943"]
[WhiteElo "2365"]
[BlackElo "2054"]
[Result "1-0"]
[Round "03"]
[TimeControl "180+2"]
[Date "2023.04.25"]
[WhiteClock "0:00:36"]
[BlackClock "0:00:01"]

1. d4 {[%clk 0:03:00]}  Nf6 {[%clk 0:02:59]} 2. Nf3 {[%clk 0:03:00]}  g6 {[%clk 0:03:00]} 3. c4 {[%clk 0:02:59]}  Bg7 {[%clk 0:03:00]} 4. Nc3 {[%clk 0:03:00]}  O-O {[%clk 0:03:00]} 5. e4 {[%clk 0:03:00]}  d6 {[%clk 0:03:01]} 6. Be2 {[%clk 0:03:01]}  c5 {[%clk 0:02:53]} 7. d5 {[%clk 0:03:00]}  e6 {[%clk 0:02:52]} 8. O-O {[%clk 0:03:00]}  exd5 {[%clk 0:02:52]} 9. exd5 {[%clk 0:03:01]}  Re8 {[%clk 0:02:52]} 10. h3 {[%clk 0:02:58]}  Ne4 {[%clk 0:02:49]} 11. Nxe4 {[%clk 0:02:57]}  Rxe4 {[%clk 0:02:50]} 12. Bd3 {[%clk 0:02:58]}  Re8 {[%clk 0:02:50]} 13. Bg5 {[%clk 0:02:58]}  f6 {[%clk 0:02:48]} 14. Bf4 {[%clk 0:02:58]}  f5 {[%clk 0:02:42]} 15. Re1 {[%clk 0:02:52]}  Rxe1+ {[%clk 0:02:29]} 16. Qxe1 {[%clk 0:02:53]}  Bxb2 {[%clk 0:02:29]} 17. Rb1 {[%clk 0:02:53]}  Bf6 {[%clk 0:02:30]} 18. Ng5 {[%clk 0:02:44]}  Qe7 {[%clk 0:01:50]} 19. Ne6 {[%clk 0:02:41]}  Na6 {[%clk 0:01:26]} 20. g4 {[%clk 0:02:08]}  fxg4 {[%clk 0:01:22]} 21. hxg4 {[%clk 0:02:09]}  Nb4 {[%clk 0:01:17]} 22. Bf1 {[%clk 0:01:53]}  b6 {[%clk 0:01:15]} 23. a3 {[%clk 0:01:48]}  Nc2 {[%clk 0:01:13]} 24. Qe4 {[%clk 0:01:44]}  Nd4 {[%clk 0:01:08]} 25. Re1 {[%clk 0:01:41]}  Bxe6 {[%clk 0:01:01]} 26. dxe6 {[%clk 0:01:42]}  Re8 {[%clk 0:01:01]} 27. Qd5 {[%clk 0:01:23]}  Be5 {[%clk 0:00:31]} 28. Bxe5 {[%clk 0:01:14]}  dxe5 {[%clk 0:00:32]} 29. Rxe5 {[%clk 0:01:13]}  Qf6 {[%clk 0:00:28]} 30. e7+ {[%clk 0:01:05]}  Kg7 {[%clk 0:00:28]} 31. Qd7 {[%clk 0:00:42]}  Nf3+ {[%clk 0:00:06]} 32. Kg2 {[%clk 0:00:42]}  Nxe5 {[%clk 0:00:07]} 33. Qxe8 {[%clk 0:00:42]}  Qf3+ {[%clk 0:00:07]} 34. Kg1 {[%clk 0:00:40]}  Qxg4+ {[%clk 0:00:06]} 35. Bg2 {[%clk 0:00:37]}  Qd1+ {[%clk 0:00:06]} 36. Kh2 {[%clk 0:00:37]}  Qh5+ {[%clk 0:00:06]} 37. Bh3 {[%clk 0:00:36]}  Nf3+ {[%clk 0:00:02]} 38. Kg3 {[%clk 0:00:37]}  Ng5 {[%clk 0:00:01]} 39. Qf8# {[%clk 0:00:36]} 1-0


[Site "https://www.chess.com"]

[Event "Titled Tuesday Blitz April 25 Early 2023"]
[White "Koridze, Lile"]
[Black "Jeet, Jain"]
[WhiteFideId "13612514"]
[BlackFideId "5073022"]
[WhiteElo "2047"]
[BlackElo "2067"]
[Result "0-1"]
[Round "03"]
[TimeControl "180+2"]
[Date "2023.04.25"]
[WhiteClock "0:00:36"]
[BlackClock "0:01:51"]

1. d4 {[%clk 0:03:00]}  c5 {[%clk 0:02:54]} 2. d5 {[%clk 0:03:00]}  e5 {[%clk 0:02:55]} 3. c4 {[%clk 0:02:59]}  d6 {[%clk 0:02:55]} 4. e4 {[%clk 0:02:59]}  Be7 {[%clk 0:02:55]} 5. Nf3 {[%clk 0:02:57]}  Bg4 {[%clk 0:02:55]} 6. Nbd2 {[%clk 0:02:46]}  Nd7 {[%clk 0:02:51]} 7. b3 {[%clk 0:02:43]}  Ngf6 {[%clk 0:02:49]} 8. Be2 {[%clk 0:02:42]}  O-O {[%clk 0:02:49]} 9. O-O {[%clk 0:02:41]}  Ne8 {[%clk 0:02:49]} 10. h3 {[%clk 0:02:41]}  Bh5 {[%clk 0:02:49]} 11. Bb2 {[%clk 0:02:37]}  a6 {[%clk 0:02:46]} 12. Re1 {[%clk 0:02:31]}  Bg6 {[%clk 0:02:43]} 13. Bd3 {[%clk 0:02:29]}  f5 {[%clk 0:02:41]} 14. exf5 {[%clk 0:02:29]}  Bxf5 {[%clk 0:02:42]} 15. Ne4 {[%clk 0:02:29]}  h6 {[%clk 0:02:38]} 16. Ng3 {[%clk 0:02:27]}  Bxd3 {[%clk 0:02:38]} 17. Qxd3 {[%clk 0:02:25]}  b5 {[%clk 0:02:31]} 18. Nf5 {[%clk 0:02:24]}  bxc4 {[%clk 0:02:29]} 19. bxc4 {[%clk 0:02:24]}  Rb8 {[%clk 0:02:28]} 20. Bc3 {[%clk 0:02:21]}  Nef6 {[%clk 0:02:27]} 21. N3h4 {[%clk 0:01:54]}  Rf7 {[%clk 0:02:11]} 22. Ng6 {[%clk 0:01:54]}  Bf8 {[%clk 0:02:11]} 23. Qg3 {[%clk 0:01:47]}  Kh7 {[%clk 0:02:06]} 24. Nfh4 {[%clk 0:00:47]}  Nh5 {[%clk 0:02:02]} 25. Nxf8+ {[%clk 0:00:44]}  Nxf8 {[%clk 0:01:54]} 26. Qd3+ {[%clk 0:00:42]}  Kg8 {[%clk 0:01:52]} 27. Bd2 {[%clk 0:00:36]}  Qxh4 {[%clk 0:01:51]} 0-1


[Site "https://www.chess.com"]

[Event "Titled Tuesday Blitz April 25 Early 2023"]
[White "Martinez Ramirez, Lennis"]
[Black "Harriott, Tyrell"]
[WhiteFideId "3509079"]
[BlackFideId "2086484"]
[WhiteElo "2410"]
[BlackElo "2107"]
[Result "0-1"]
[Round "03"]
[TimeControl "180+2"]
[Date "2023.04.25"]
[WhiteClock "0:00:05"]
[BlackClock "0:00:06"]

1. c4 {[%clk 0:02:55]}  e6 {[%clk 0:03:00]} 2. Nc3 {[%clk 0:02:55]}  d5 {[%clk 0:03:00]} 3. cxd5 {[%clk 0:02:55]}  exd5 {[%clk 0:03:00]} 4. d4 {[%clk 0:02:56]}  f5 {[%clk 0:02:59]} 5. Qb3 {[%clk 0:02:54]}  Nf6 {[%clk 0:02:57]} 6. Bg5 {[%clk 0:02:54]}  c6 {[%clk 0:02:57]} 7. e3 {[%clk 0:02:54]}  Bd6 {[%clk 0:02:54]} 8. Nge2 {[%clk 0:02:53]}  O-O {[%clk 0:02:53]} 9. Nf4 {[%clk 0:02:50]}  Qe8 {[%clk 0:02:48]} 10. Bxf6 {[%clk 0:02:48]}  Bxf4 {[%clk 0:02:41]} 11. Bh4 {[%clk 0:02:45]}  Bxe3 {[%clk 0:02:29]} 12. fxe3 {[%clk 0:02:44]}  Qxe3+ {[%clk 0:02:28]} 13. Ne2 {[%clk 0:02:41]}  Qh6 {[%clk 0:02:24]} 14. Bf2 {[%clk 0:02:37]}  Na6 {[%clk 0:02:17]} 15. Be3 {[%clk 0:02:20]}  f4 {[%clk 0:02:10]} 16. Bd2 {[%clk 0:02:20]}  Qh4+ {[%clk 0:02:07]} 17. g3 {[%clk 0:02:19]}  fxg3 {[%clk 0:02:06]} 18. Qxg3 {[%clk 0:02:19]}  Qe7 {[%clk 0:01:51]} 19. O-O-O {[%clk 0:02:13]}  Bf5 {[%clk 0:01:48]} 20. Rg1 {[%clk 0:02:05]}  Bg6 {[%clk 0:01:47]} 21. Nf4 {[%clk 0:02:00]}  Rxf4 {[%clk 0:01:43]} 22. Bxf4 {[%clk 0:01:58]}  Nb4 {[%clk 0:01:39]} 23. a3 {[%clk 0:01:48]}  Qe4 {[%clk 0:01:30]} 24. Kd2 {[%clk 0:01:38]}  Qxd4+ {[%clk 0:01:02]} 25. Ke1 {[%clk 0:01:38]}  Re8+ {[%clk 0:00:47]} 26. Be2 {[%clk 0:01:38]}  Nd3+ {[%clk 0:00:27]} 27. Kf1 {[%clk 0:00:44]}  Qxf4+ {[%clk 0:00:18]} 28. Qxf4 {[%clk 0:00:43]}  Nxf4 {[%clk 0:00:19]} 29. Bg4 {[%clk 0:00:38]}  h5 {[%clk 0:00:17]} 30. Bf3 {[%clk 0:00:36]}  Bd3+ {[%clk 0:00:15]} 31. Kf2 {[%clk 0:00:12]}  Nh3+ {[%clk 0:00:15]} 32. Kg3 {[%clk 0:00:13]}  Nxg1 {[%clk 0:00:15]} 33. Bxh5 {[%clk 0:00:12]}  Re3+ {[%clk 0:00:13]} 34. Kf2 {[%clk 0:00:11]}  Rh3 {[%clk 0:00:12]} 35. Bg4 {[%clk 0:00:09]}  Rh4 {[%clk 0:00:12]} 36. Kg3 {[%clk 0:00:08]}  Rxg4+ {[%clk 0:00:09]} 37. Kf2 {[%clk 0:00:08]}  Be4 {[%clk 0:00:07]} 38. Ke3 {[%clk 0:00:05]}  Nf3 {[%clk 0:00:07]} 39. Rf1 {[%clk 0:00:05]}  Nxh2 {[%clk 0:00:07]} 40. Rc1 {[%clk 0:00:06]}  Rg3+ {[%clk 0:00:06]} 41. Kd4 {[%clk 0:00:07]}  Rg4 {[%clk 0:00:06]} 42. Ke5 {[%clk 0:00:07]}  Rg6 {[%clk 0:00:07]} 43. b4 {[%clk 0:00:07]}  Rf6 {[%clk 0:00:07]} 44. Kd4 {[%clk 0:00:06]}  b6 {[%clk 0:00:07]} 45. b5 {[%clk 0:00:06]}  c5+ {[%clk 0:00:08]} 46. Kc3 {[%clk 0:00:07]}  Rf3+ {[%clk 0:00:07]} 47. Kb2 {[%clk 0:00:06]}  Rf2+ {[%clk 0:00:07]} 48. Kb3 {[%clk 0:00:06]}  Nf3 {[%clk 0:00:07]} 49. Ka4 {[%clk 0:00:07]}  Nd4 {[%clk 0:00:08]} 50. Rg1 {[%clk 0:00:03]}  Nxb5 {[%clk 0:00:07]} 51. Kxb5 {[%clk 0:00:02]}  d4 {[%clk 0:00:08]} 52. a4 {[%clk 0:00:02]}  d3 {[%clk 0:00:08]} 53. Kc4 {[%clk 0:00:03]}  d2 {[%clk 0:00:08]} 54. Kc3 {[%clk 0:00:04]}  Bf3 {[%clk 0:00:08]} 55. Rxg7+ {[%clk 0:00:03]}  Kxg7 {[%clk 0:00:07]} 56. Kc4 {[%clk 0:00:04]}  d1=Q {[%clk 0:00:06]} 57. Kb5 {[%clk 0:00:05]}  Qd3# {[%clk 0:00:06]} 0-1


[Site "https://www.chess.com"]